Cogmind - Beta 9.1 @@@ ROGUE MODE // 2019.10.30 @ 14:05:16 // Halloween2019/Abominations Player: Alexbot Result: Self-destructed Performance ------------- Evolutions (5) 2500 Regions Visited (6) 1200 Robots Destroyed (69) 345 Value Destroyed (3932) 3932 Prototype IDs (3) 60 Alien Tech Used (0) 0 Bonus (-20) -20 TOTAL SCORE: 8017 Bonus ------- Friendly Fire -20 Cogmind --------- Core Integrity 957/1000 Matter 202/300 Energy 295/295 System Corruption 0% Temperature Cool (0) Location -5/Factory Parts ------- Power (2) Fusion Reactor Propulsion (3) Experimental Cesium-ion Thruster Utility (8) Fusion Compressor Medium Storage Unit Reflective Plating Reflective Plating Thermal Shield Force Field Improved Field Recycling Unit Weapon (4) Great Axe Great Axe Inventory (8) Advanced Signal Interpreter Improved Light Armor Plating Long-range Tractor Beam Peak State ------------ Power Fusion Reactor Propulsion Armored Wheel Experimental Cesium-ion Thruster Utility Fusion Compressor Medium Storage Unit Reflective Plating Reflective Plating Thermal Shield Force Field Improved Field Recycling Unit Weapon Great Axe Great Axe Inventory Advanced Signal Interpreter Improved Light Armor Plating Long-range Tractor Beam [Rating: 50] Favorites ----------- Power Light Ion Engine Engine Light Ion Engine Reactor Fusion Reactor Propulsion Light Treads Treads Light Treads Wheel Armored Wheel Flight Unit Experimental Cesium-ion Thruster Utility Hacking Suite Device Force Field Storage High-capacity Storage Unit Processor Improved Target Analyzer Hackware Hacking Suite Protection Improved Light Armor Plating Weapon Rocket Launcher Energy Gun Medium Laser Ballistic Gun Minigun Ballistic Cannon Advanced Assault Cannon Launcher Rocket Launcher Slashing Weapon Great Axe Build | -11 -10 -9 -8 -7 -6 -5 ------- Run | Scr Mat Mat Mat Fac Fac Fac Slots Evolved 10 | . . 2 2 2 2 2 Power 1 | . . . . 1 . . Propulsion 1 | . . . 1 . . . Utility 6 | . . 2 . 1 2 1 Weapon 2 | . . . 1 . . 1 Parts Attached 56 | 6 5 7 7 14 6 11 Power 4 | 1 . 1 . 1 . 1 Engine 3 | 1 . 1 . 1 . . Core . | . . . . . . . Reactor 1 | . . . . . . 1 Propulsion 15 | 2 3 1 4 1 3 1 Treads 3 | . . . 3 . . . Leg . | . . . . . . . Wheel 11 | 2 3 1 1 1 3 . Hover . | . . . . . . . Flight 1 | . . . . . . 1 Utility 17 | 1 . 3 1 3 2 7 Device 4 | . . . . . . 4 Storage 3 | 1 . . 1 . . 1 Processor 3 | . . 1 . . 2 . Hackware 2 | . . 2 . . . . Protection 5 | . . . . 3 . 2 Artifact . | . . . . . . . Weapon 20 | 2 2 2 2 9 1 2 Energy Gun 4 | 1 2 . . 1 . . Energy Cannon . | . . . . . . . Ballistic Gun 2 | 1 . . . 1 . . Ballistic Cannon 1 | . . . . . 1 . Launcher 11 | . . 2 2 7 . . Special Weapon . | . . . . . . . Impact Weapon . | . . . . . . . Slashing Weapon 2 | . . . . . . 2 Piercing Weapon . | . . . . . . . Special Melee Weapon . | . . . . . . . Unidentified Prototypes 3 | . . . . 1 . 2 Parts Lost 30 | . 5 1 4 9 8 3 Power 3 | . 1 . 1 . 1 . Propulsion 8 | . 1 1 1 1 1 3 Utility 4 | . . . . 1 3 . Weapon 15 | . 3 . 2 7 3 . Highest Loss Streak 4 | . 4 1 4 3 4 3 Average Slot Usage (%) 72 | . 76 79 68 74 72 55 Engine 3 | . 13 7 2 . 4 . Treads 13 | . . . 17 20 11 . Wheel 7 | . 24 18 7 2 6 12 Device 1 | . . . . . . 20 Storage 7 | . 14 11 9 7 5 4 Processor 3 | . . 8 2 . 9 . Hackware 12 | . . 15 18 15 11 . Protection 6 | . . . . 12 5 6 Energy Gun 1 | . 12 . . . . . Ballistic Gun 3 | . 11 . . 1 5 . Launcher 10 | . . 17 10 13 10 . Naked Turns 74 | . . . . . 74 . Heaviest Build 61 | 13 13 19 36 58 58 61 Greatest Support 60 | 26 26 20 60 60 40 32 Greatest Overweight (x) 5 | . 1 1 1 1 2 5 Average Overweight (x) . | . . . . . . . Largest Inventory Capacity 14 | 6 6 6 14 12 12 8 Average Capacity 10 | 5 6 6 10 12 10 7 Most Carried 12 | 4 6 6 11 12 8 4 Average Carried 7 | 2 5 5 7 9 6 3 Final Capacity 12 | 6 6 6 12 12 4 8 Final Carried 11 | 4 6 6 11 6 4 3 Class Distribution -------------------- 74% | Hacker-Mutant 20% | Mutant 3% | Scavenger-Mutant Dominant Class ---------------- Mutant | -10/Materials Hacker-Mutant | -9/Materials Hacker-Mutant | -8/Materials Hacker-Mutant | -7/Factory Hacker-Mutant | -6/Factory Mutant | -5/Factory Resources | -11 -10 -9 -8 -7 -6 -5 ----------- Run | Scr Mat Mat Mat Fac Fac Fac Matter Collected 3051 | 218 174 153 320 941 1146 99 Remotely . | . . . . . . . Salvage Created 1967 | . 396 61 238 335 625 312 Parts 96 | . 25 9 13 19 20 10 Haulers Intercepted . | . . . . . . . Recyclers Shooed . | . . . . . . . Parts Field Recycled 7 | . . . . . . 7 Retrieved Matter 59 | . . . . . . 59 Parts Self-Destructed . | . . . . . . . Prevented . | . . . . . . . Kills | -11 -10 -9 -8 -7 -6 -5 ------- Run | Scr Mat Mat Mat Fac Fac Fac Combat Hostiles Destroyed 56 | . 8 3 10 14 18 3 Melee 3 | . . . . . . 3 Guns 8 | . 8 . . . . . AOE 43 | . . 3 10 12 18 . Classes Destroyed 9 | . 2 1 3 3 . . Worker 5 | . . 2 1 2 . . Builder 1 | . . . . 1 . . Swarmer 3 | . . . 3 . . . Grunt 12 | . 1 3 . 4 4 . Protector 1 | . . . . 1 . . Sentry 1 | . . . 1 . . . Hunter 2 | . . . . 1 1 . Abomination 37 | . 7 . 6 8 13 3 Anomaly 7 | . . . 2 2 3 . Best Kill Streak 9 | . 3 5 9 5 3 2 Combat Bots Only 6 | . 3 3 6 3 3 2 Max Kills in Single Turn 3 | . 1 2 2 2 3 1 Gunslinging . | . . . . . . . Exploded 2 | . . 1 2 2 2 . Melee 1 | . . . . . . 1 Uniques/NPCs Destroyed . | . . . . . . . Combat | -11 -10 -9 -8 -7 -6 -5 -------- Run | Scr Mat Mat Mat Fac Fac Fac Damage Taken 5739 | . 343 89 781 1675 2449 402 Core 1265 | . 30 15 243 156 778 43 Absorbed by Shields 144 | . . . . . . 144 Core Remaining (%) 70 | 100 88 96 55 77 8 . Volleys Fired 169 | . 46 6 26 42 49 . Largest 3 | . 2 1 1 3 3 . Hottest 105 | . 70 36 36 105 94 . Shots Fired 280 | . 81 6 26 79 88 . Gun 86 | . 81 . . . 5 . Cannon 1 | . . . . . 1 . Launcher 193 | . . 6 26 79 82 . Special . | . . . . . . . Kinetic 45 | . 39 . . . 6 . Thermal 42 | . 42 . . . . . Explosive 192 | . . 6 26 78 82 . Electromagnetic 1 | . . . . 1 . . Robot Hit Streak 18 | . 13 2 5 18 17 . Robot Miss Streak 5 | . 4 1 4 5 3 . Penetration Max . | . . . . . . . Secondary Targets 2 | . 2 . . . . . Max Gunslinging Chain 1 | . 1 . . . . . Shots Hit Robots 189 | . 54 3 16 48 51 17 Core Hits 185 | . 25 10 26 55 63 6 Critical Hits 1 | . . . . . 1 . Critical Kills . | . . . . . . . Critical Parts Destroyed 1 | . . . . . 1 . Melee Attacks 20 | . . . . . . 20 Impact . | . . . . . . . Slashing 20 | . . . . . . 20 Piercing . | . . . . . . . Sneak Attacks . | . . . . . . . Combat Hostiles . | . . . . . . . Follow-up Attacks 3 | . . . . . . 3 Damage Inflicted 10642 | . 840 516 1435 3436 3756 659 Guns 886 | . 840 . . . 46 . Cannons 27 | . . . . . 27 . Explosions 9054 | . . 516 1435 3420 3683 . Melee 659 | . . . . . . 659 Ramming 16 | . . . . 16 . . Kinetic 413 | . 340 . . . 73 . Thermal 500 | . 500 . . . . . Explosive 9038 | . . 516 1435 3412 3675 . Electromagnetic 16 | . . . . 8 8 . Impact . | . . . . . . . Slashing 659 | . . . . . . 659 Piercing . | . . . . . . . Highest Corruption 6 | . 1 1 . 3 6 . Average Corruption 2 | . 1 1 . 2 3 . Corruption Purged . | . . . . . . . Effects 14 | . . . . 7 7 . Message Errors 7 | . . . . 4 3 . Matter Fused 2 | . . . . 1 1 . Heat Flow Errors 2 | . . . . . 2 . Energy Discharges 2 | . . . . 2 . . Targeting Errors 1 | . . . . . 1 . Overload Shots . | . . . . . . . Overflow Damage 518 | . . 56 83 194 170 15 Projectiles . | . . . . . . . Explosions 503 | . . 56 83 194 170 . Melee 15 | . . . . . . 15 Knockbacks 1 | . . . . . 1 . Impact . | . . . . . . . Kinetic 1 | . . . . . 1 . Secondary . | . . . . . . . Self-Inflicted Damage 620 | . . 31 . 194 395 . Shots 18 | . . 1 . 6 11 . Rammed 4 | . . . . 4 . . Targets Rammed 4 | . . . . 4 . . Kicked . | . . . . . . . Crushed . | . . . . . . . Highest Temperature 949 | . 144 4 949 657 906 . Average Temperature 203 | . 42 3 404 189 224 . Received Heat Transfer 1192 | . 111 33 63 408 561 16 Effects 66 | . . . 28 11 27 . Shutdowns 6 | . . . 2 . 4 . Energy Bleed 8 | . . . 2 2 4 . Interference 7 | . . . 3 1 3 . Matter Decay 7 | . . . 2 3 2 . Short Circuit 7 | . . . 4 1 2 . Damage (minor) 8 | . . . 3 . 5 . Damage (major) 19 | . . . 10 4 5 . Damage (core) 4 | . . . 2 . 2 . Siege Activations . | . . . . . . . Robots Corrupted . | . . . . . . . Combat Hostiles . | . . . . . . . Parts Fried . | . . . . . . . Impact Corruptions . | . . . . . . . Robots Melted . | . . . . . . . Combat Hostiles . | . . . . . . . Parts Melted 1 | . . . 1 . . . Heat Transferred 437 | . 437 . . . . . Parts Sabotaged . | . . . . . . . Parts Stolen . | . . . . . . . Parts Stripped . | . . . . . . . Power Chain Reactions . | . . . . . . . Missiles Intercepted . | . . . . . . . Alert | -11 -10 -9 -8 -7 -6 -5 ------- Run | Scr Mat Mat Mat Fac Fac Fac Peak Influence 232 | . 30 139 214 191 232 37 Average Influence 78 | . 2 62 137 82 86 22 Maximum Alert Level 1 | . . . 1 . 1 . Low Security (%) 90 | . . . . . . . Level 1 9 | . . . . . . . Level 2 . | . . . . . . . Level 3 . | . . . . . . . Level 4 . | . . . . . . . Level 5 . | . . . . . . . High Security . | . . . . . . . Max Security . | . . . . . . . Squads Dispatched 75 | . 1 3 8 32 22 9 Investigation 13 | . . 2 2 5 4 . Extermination . | . . . . . . . Reinforcement 25 | . . 1 2 8 6 8 Assault 19 | . 1 . 4 8 6 . Garrison 18 | . . . . 11 6 1 Intercept . | . . . . . . . Construction Impeded 1 | . . . . 1 . . Haulers Reinforced 8 | . . . . 2 1 5 Stealth | -11 -10 -9 -8 -7 -6 -5 --------- Run | Scr Mat Mat Mat Fac Fac Fac Distress Signals 32 | . 1 5 5 9 7 5 Communications Jammed . | . . . . . . . Distress Signals . | . . . . . . . Times Spotted 99 | . 19 6 18 23 29 4 Peak Tracking Total 7 | . 6 4 7 6 7 3 Tactical Retreats 13 | . 1 . 1 6 5 . Traps | -11 -10 -9 -8 -7 -6 -5 ------- Run | Scr Mat Mat Mat Fac Fac Fac Traps Triggered 3 | . . . . 3 . . Indirectly 2 | . . . . 2 . . Trap Hack Attempts . | . . . . . . . Triggered . | . . . . . . . Disarmed . | . . . . . . . Reprogrammed . | . . . . . . . Reused . | . . . . . . . Traps Extracted . | . . . . . . . Installed . | . . . . . . . Triggered 1 | . . . . . 1 . Machines | -11 -10 -9 -8 -7 -6 -5 ---------- Run | Scr Mat Mat Mat Fac Fac Fac Machines Disabled 15 | . . 2 . 9 4 . Max in Single Turn 4 | . . 1 . 4 2 . Garrison Access 2 | . . . . 1 1 . Machines Sabotaged . | . . . . . . . Garrisons Compromised . | . . . . . . . Overloaded Fab Kills . | . . . . . . . Fab Network Shutdowns . | . . . . . . . Hacking | -11 -10 -9 -8 -7 -6 -5 --------- Run | Scr Mat Mat Mat Fac Fac Fac Machines Accessed 8 | . 1 1 2 1 2 1 Terminals 7 | . . 1 2 1 2 1 Fabricators . | . . . . . . . Repair Stations . | . . . . . . . Recycling Units 1 | . 1 . . . . . Scanalyzers . | . . . . . . . Garrison Access . | . . . . . . . Total Hacks 38 | . 3 4 19 4 5 3 Successful 18 | . 3 2 11 . . 2 Failed 19 | . . 2 7 4 5 1 Catastrophic 3 | . . . . . 3 . Database Lockouts 1 | . . . 1 . . . Manual 26 | . . . 17 4 5 . Terminals 35 | . . 4 19 4 5 3 Fabricators . | . . . . . . . Repair Stations . | . . . . . . . Recycling Units 3 | . 3 . . . . . Scanalyzers . | . . . . . . . Garrison Access . | . . . . . . . Terminal Hacks 13 | . . 2 9 . . 2 Part Schematic 4 | . . . 4 . . . Robot Analysis 1 | . . . 1 . . . Level Access Points 2 | . . 1 1 . . . Alert Level 3 | . . 1 1 . . 1 Unreport Threat 1 | . . . 1 . . . Recall Investigation 1 | . . . 1 . . . Zone Layout 1 | . . . . . . 1 Fabricator Hacks . | . . . . . . . Repair Station Hacks . | . . . . . . . Recycling Unit Hacks 3 | . 3 . . . . . Process 1 | . 1 . . . . . Retrieve Matter 1 | . 1 . . . . . Retrieve Components 1 | . 1 . . . . . Scanalyzer . | . . . . . . . Garrison Access Hacks . | . . . . . . . Unauthorized Hacks 6 | . . . 6 . . . Terminals 2 | . . . 2 . . . Botnet 1 | . . . 1 . . . Operators 1 | . . . 1 . . . Fabricators . | . . . . . . . Repair Stations . | . . . . . . . Recycling Units . | . . . . . . . Scanalyzers . | . . . . . . . Garrison Access . | . . . . . . . Data Cores Recovered . | . . . . . . . Used . | . . . . . . . Hacking Detections 8 | . 1 1 2 1 2 1 Full Trace Events 3 | . . 1 . 1 1 . Feedback Events 1 | . . 1 . . . . Corruption 1 | . . 1 . . . . Feedback Blocked . | . . . . . . . Robot Schematics Acquired . | . . . . . . . Robots Built . | . . . . . . . Matter . | . . . . . . . Time . | . . . . . . . Total Robot Build Rating . | . . . . . . . Part Schematics Acquired 4 | . . . 4 . . . Parts Built . | . . . . . . . Matter . | . . . . . . . Time . | . . . . . . . Total Part Build Rating . | . . . . . . . Parts Repaired . | . . . . . . . Time . | . . . . . . . Parts Recycled . | . . . . . . . Recycled Matter . | . . . . . . . Retrieved Matter . | . . . . . . . Retrieved Components . | . . . . . . . Parts Scanalyzed . | . . . . . . . Part Schematics Acquired . | . . . . . . . Parts Damaged . | . . . . . . . Bothacking | -11 -10 -9 -8 -7 -6 -5 ------------ Run | Scr Mat Mat Mat Fac Fac Fac Used RIF Installer . | . . . . . . . Robots Hacked . | . . . . . . . Non-combat . | . . . . . . . Combat . | . . . . . . . Robot Hacks Applied . | . . . . . . . Relay Couplers Released 10 | . . . . 8 2 . Machine Destruction 4 | . . . . 2 2 . Programmers 6 | . . . . 6 . . Robots Rewired . | . . . . . . . Allies Hacked . | . . . . . . . Hacks Repelled . | . . . . . . . Allies | -11 -10 -9 -8 -7 -6 -5 -------- Run | Scr Mat Mat Mat Fac Fac Fac Total Allies 6 | . . . . 3 3 . Largest Group 3 | . . . . 3 2 . Highest-Rated Group 93 | . . . . 93 62 . Highest-Rated Ally 31 | . . . . 31 31 . Total Orders . | . . . . . . . Ally Attacks 71 | . . . . 59 12 . Total Damage 578 | . . . . 450 128 . Kills 4 | . . . . 3 1 . Allies Corrupted . | . . . . . . . Allies Melted 2 | . . . . 2 . . Intel | -11 -10 -9 -8 -7 -6 -5 ------- Run | Scr Mat Mat Mat Fac Fac Fac Robot Analysis Total 1 | . . . 1 . . . Derelict Logs Recovered . | . . . . . . . Drone Launches . | . . . . . . . Drone Recoveries . | . . . . . . . Exploration | -11 -10 -9 -8 -7 -6 -5 ------------- Run | Scr Mat Mat Mat Fac Fac Fac Turns Passed 3021 | 53 292 140 434 1040 908 154 Spaces Moved 1747 | 44 163 140 266 507 554 73 Core 227 | 5 . . 5 . 214 3 Treads 1006 | . . . 159 507 340 . Legs . | . . . . . . . Wheels 514 | 39 163 140 102 . . 70 Hover . | . . . . . . . Flight . | . . . . . . . Fastest Speed 50 | 50 80 80 80 163 50 50 Average Speed 132 | 85 88 82 129 170 133 90 Slowest Speed 210 | 90 90 90 163 185 210 140 Overloaded Moves . | . . . . . . . Propulsion Burnouts . | . . . . . . . Robots Hopped . | . . . . . . . Cave-ins Triggered . | . . . . . . . Exploration Rate (%) 20 | 4 34 20 30 18 33 1 Regions Visited 6 Branch Regions . Pre-discovered Areas . | . . . . . . . Known Exits Taken 2 | . . 1 1 . . . Unknown Exits Taken 4 | 1 1 . . 1 1 . Scrap Searched . | . . . . . . . Spaces Dug 1 | . . . . . . 1 Terrain Destroyed 657 | . . 38 135 231 252 1 Melee 1 | . . . . . . 1 Projectile 1 | . . . . . 1 . AOE 655 | . . 38 135 231 251 . Actions | -11 -10 -9 -8 -7 -6 -5 --------- Run | Scr Mat Mat Mat Fac Fac Fac Total 2090 | 57 227 155 329 580 618 124 Wait 62 | 2 11 . 11 8 7 23 Move 1740 | 43 162 139 265 505 553 73 Hop . | . . . . . . . Pick Up 33 | 6 3 3 11 7 3 . Fast Attach 28 | 4 4 4 1 2 3 10 Attach 28 | 2 1 3 6 12 3 1 Detach 5 | . . . 5 . . . Swap . | . . . . . . . Drop 4 | . . . 4 . . . Fire 169 | . 46 6 26 42 49 . Melee 17 | . . . . . . 17 Ram . | . . . . . . . Kick . | . . . . . . . Crush 4 | . . . . 4 . . Escape Stasis . | . . . . . . . Rewire . | . . . . . . . Trap . | . . . . . . . Miscellaneous . | . . . . . . . Route ------- -11/Scrapyard -10/Materials -9/Materials (discovered 3 exits: *Mat x3) -8/Materials (discovered 3 exits: *Fac x3) -7/Factory -6/Factory -5/Factory History --------- Turn | Location | Event 21 | -11/Scrapyard | Discovered new exit (range 15) 54 | -11/Scrapyard | Entered Materials 186 | -10/Materials | Discovered new exit (range 8) 263 | -10/Materials | Discovered new exit (range 11) 318 | -10/Materials | Build established: Mutant 346 | -10/Materials | Entered another Materials area 346 | -9/Materials | Evolved 2 slots: Utility x2 358 | -9/Materials | Lost 4 parts (1p1n2w) 419 | -9/Materials | Identified exit to Materials 486 | -9/Materials | Entered another Materials area 486 | -8/Materials | Evolved 2 slots: Propulsion x1, Weapon x1 553 | -8/Materials | Identified exit to Factory 553 | -8/Materials | Central database locked down 635 | -8/Materials | Lost 4 parts (1p1n2w) 889 | -8/Materials | Build established: Hacker-Mutant 920 | -8/Materials | Entered Factory 920 | -7/Factory | Evolved 2 slots: Power x1, Utility x1 936 | -7/Factory | Garrison activated, responded to threat 1025 | -7/Factory | Garrison activated, responded to threat 1096 | -7/Factory | Garrison activated, responded to threat 1238 | -7/Factory | Garrison activated, responded to threat 1268 | -7/Factory | Garrison activated, responded to threat 1447 | -7/Factory | Garrison activated, responded to threat 1528 | -7/Factory | Discovered new exit (range 4) 1530 | -7/Factory | Lost 3 parts (3w) 1590 | -7/Factory | Garrison activated, responded to threat 1872 | -7/Factory | Discovered new exit (range 9) 1960 | -7/Factory | Entered another Factory area 1960 | -6/Factory | Evolved 2 slots: Utility x2 1981 | -6/Factory | Garrison activated, responded to threat 1997 | -6/Factory | Garrison activated, responded to threat 2245 | -6/Factory | Garrison activated, responded to threat 2677 | -6/Factory | Core integrity fell below 50% 2752 | -6/Factory | Released all parts (7) 2753 | -6/Factory | Core integrity fell below 20% 2782 | -6/Factory | Lost 4 parts (1n1u2w) 2783 | -6/Factory | Discovered new exit (range 12) 2860 | -6/Factory | Discovered new exit (range 13) 2868 | -6/Factory | Entered another Factory area 2868 | -5/Factory | Evolved 2 slots: Utility x1, Weapon x1 2954 | -5/Factory | Garrison activated, responded to threat 3022 | -5/Factory | Self-destructed Last Messages --------------- 02991_ Penetrated by Slug. 02993_ Great Axe follow-up attack on Greater Abomination. 02993_ Penetrated by Slug. 02996_ Great Axe follow-up attack on Greater Abomination. 02997_ Penetrated by Slug. 03002_ Greater Abomination destroyed. 03003_ Acquired 99 matter. 03006_ Acquired Prototype Reactor. 03006_ Identified Fusion Reactor. 03007_ Mic. Fission Core springs to life within a quantum being. 03008_ Greater Abomination absorbs Adv. Heat Sink. 03009_ Greater Abomination absorbs Prototype Flight Unit. 03009_ Acquired Prototype Flight Unit. 03009_ Identified Exp. Cesium-ion Thruster. 03013_ ALERT: Hostile activity reported, dispatching reinforcements to area. 03014_ Arm. Wheel destroyed. 03017_ Greater Abomination absorbs KE Penetrator. 03017_ Slug penetrates Wall. 03019_ Greater Abomination destroyed. Map ----- +----------------------------------------------------+ | ???????????????????????????????????????????????? | | ???????????????????????????????????????????????? | | ???????????????????????????????????????????????? | | ???????????????????????????????????????????????? | | ???????????????????????????????????????????????? | | ???????????????????????????????????????????????? | | ??????????????????????????????? ??????????????? | | ????????? # #???# ???????? | | ?????????## #???# ???????? | | ?????????#####+### #???# ???????? | | ????????? # ##### ???????? | | ????????? "" # " " """ """ # ???????? | | ?????????" F" # "Y" """ """ # ???????? | | ?????????" " # """ """ """ # ???????? | | ?????????" "" # + ???????? | | ????????? # # ???????? | | ?????????" """ # ########### ##########? | | ?????????" """ # ## # # #? | | ?????????" """ # ## # # #? | | ????????? # ## # # #? | | ????????? # ##"" # # #? | | ????????? # ##"" + + #? | | ?????????######### ##"T # # """"" #? | | ?????????#???????# ##"" # # """"" #? | | ?????????###???### ##"! # # """ #? | | ????????? ##### ## %@ ####### #? | | ????????? ##%#######################? | | ????????? *[# ???????? | | ????????? % # ???????? | | ????????? #### T # ???????? | | ?????????###??# # ???????? | | ??????????????# # ???????? | | ??????????????# # ???????? | | ??????????????# """"" # ???????? | | ??????????????# "" "" # ???????? | | ?????????###### """ # ???????? | | ????????? #####+#########+???????? | | ????????? """"" ???????? | | ?????????????????????" ???????????????????????? | | ????????????????????? ???????????????????????? | | ?????????????????????? ???????????????????????? | | ?????????????????????? ???????????????????????? | | ???????????????????????????????????????????????? | | ???????????????????????????????????????????????? | | ???????????????????????????????????????????????? | | ???????????????????????????????????????????????? | | ???????????????????????????????????????????????? | | ???????????????????????????????????????????????? | | ???????????????????????????????????????????????? | | ???????????????????????????????????????????????? | +----------------------------------------------------+ Best States ------------- Heat Dissipation 40 Energy Generation 23 Energy Capacity 295 Matter Stores 300 Matter Capacity 300 Sight Range 22 Terrain Scan Density 10 Armor Coverage 375 Resistance: TH 20 Evasion (%) 50 Target Analysis 6 Recoil Reduction 3 Offensive Hacking 20 Item Schematics ----------------- Hacking Suite | -8/Materials | Hacked System Shield | -8/Materials | Hacked Lrg. Storage Unit | -8/Materials | Hacked Arm. Wheel | -8/Materials | Hacked Robot Schematics ------------------ None Fabricated ------------ Nothing Alien Tech Used ----------------- None Achievements -------------- None Challenges ------------ None Game ------ Seed GuidedProcessingExoskeleton Manual? 0 Play Time 00:40:42 Cumulative 665.3 hours Start 2019.10.30 @ 11:44:58 End 2019.10.30 @ 14:05:16 Sessions 3 Manual Loads 0 Difficulty Rogue Special Mode Halloween2019/Abominations Game No. 162 Rogue 162 Adventurer 0 Explorer 0 Win Type - Total 29 Types 21/0/2/3/2/0/1 Lore% 96 Gallery% 97 Achievement% 90 Wizard Run 0 Options --------- ASCII 0 Keyboard 1 Movement Numpad Keybinds 0 Fullscreen 1 Font 18/SmallcapsGlow Map View 76x50 Tactical HUD 1 Map Filters NONE Filters NONE Steam 1 RUN: 0de8a9c7-4cd3-428f-af34-c6a51c79ecd9